[Event "German Bundesliga 2023-24"]
[Site "Germany"]
[Date "2024.03.16"]
[Round "12"]
[White "Adams, Michael"]
[Black "Pruijssers, Roeland"]
[Result "1-0"]
[ECO "C43"]
[WhiteElo "2674"]
[BlackElo "2539"]
[Annotator "TA"]
[PlyCount "125"]
[EventDate "2023.10.20"]
[EventType "team-tourn"]
[EventCountry "GER"]
[SourceTitle "playchess.com"]
[Source "ChessBase"]
[SourceQuality "1"]
[TimeControl "40/6000+30:3000+30"]

{[%evp 12,124,0,0,6,0,0,0,4,7,0,9,11,0,29,17,50,40,28,17,39,51,50,34,49,51,39,52,37,29,36,24,24,28,31,2,5,5,35,21,91,98,93,40,40,40,40,40,40,39,39,40,40,0,7,0,8,8,8,8,27,0,0,0,0,0,0,0,0,0,7,0,0,0,0,17,628,628,628,628,702,702,694,635,683,614,614,606,29968,29970,29970,29971,29971,29973,29972,29973,29978,29979,29979,29980,29980,29981,29981,29982,29982,29983,29985,29986,29994,80,29995,29996,29998,29999,29999]} 1. e4 {[%emt 0:01:00]} e5 {[%emt 0:01:00]} 2. Nf3 {[%emt 0:00:00]} Nf6 {[%emt 0:00:00]} 3. d4 {[%emt 0:00:00]} Nxe4 {[%emt 0:00:00]} 4. Bd3 {[%emt 0:00:30]} d5 {[%emt 0:00:30]} 5. Nxe5 {[%emt 0:00:00]} Nd7 {[%emt 0:00:30]} 6. O-O {[%emt 0:00:00]} Nxe5 {[%emt 0:01:30]} 7. dxe5 {[%emt 0:00:30]} Nc5 {[%emt 0:00:30]} 8. Be3 {[%emt 0:00:30]} Nxd3 {[%emt 0:01:30]} 9. Qxd3 {[%emt 0:00:00]} c6 {[%emt 0:06:30] The position is equal.} 10. Nc3 {[%emt 0:02:00]} Be7 {[%emt 0:03:30]} 11. f4 {[%emt 0:03:30]} g6 {[%emt 0:01:30]} 12. Ne2 {[%emt 0:00:30]} c5 {[%emt 0:05:30]} 13. c3 {[%emt 0:05:30]} Bf5 {[%emt 0:16:30]} 14. Qd2 {[%emt 0:01:30]} Qd7 {[%emt 0:00:00]} 15. b4 {[%emt 0:11:30]} b6 {[%emt 0:01:00]} 16. bxc5 {[%emt 0:04:30]} bxc5 {[%emt 0:00:30]} 17. Ng3 {[%emt 0:02:30]} O-O {[%emt 0:14:30]} 18. Nxf5 {[%emt 0:19:30]} Qxf5 {[%emt 0:08:30]} 19. Qxd5 {[%emt 0:01:30][%cal Od5b7]} Rad8 {[%emt 0:00:30]} 20. Qc4 {[%emt 0:05:30]} Qd3 {[%emt 0:14:30] Wards off Rfd1} 21. Qxd3 {[%emt 0:00:00]} Rxd3 {[%emt 0:00:00]} 22. Kf2 {[%emt 0:00:00]} Rxc3 {[%emt 0:00:00]} 23. Rfc1 {[%emt 0:00:30]} Rxc1 {[%emt 0:02:30]} 24. Rxc1 $11 {[%emt 0:00:00][%mdl 4096] Endgame. KRB-KRB} Rb8 {[%emt 0:00:30]} 25. Rc2 {[%emt 0:04:00][%cal Of2f3]} f6 {[%emt 0:21:21]} (25... Rb6 $11 {keeps the balance.}) 26. exf6 $16 {[%emt 0:03:30] White is more active.} (26. Bxc5 $2 {is the wrong capture.} Rc8 27. exf6 Rxc5 $19 (27... Bxc5+ $2 28. Kf3 $19)) 26... Bxf6 {[%emt 0:00:06]} 27. Kf3 {[%emt 0:10:30]} ({White should try} 27. Bxc5 $16 Rc8 28. Ke3) 27... Be7 $1 $14 {[%emt 0:00:17]} 28. Rc3 {[%emt 0:02:30]} (28. Bxc5 $2 {perishes.} Rc8 29. f5 Rxc5 $19 (29... Bxc5 $2 30. fxg6 hxg6 31. Kg4 $19)) 28... Rb6 {[%emt 0:08:01]} 29. Bxc5 {[%emt 0:04:30]} Bxc5 {[%emt 0:00:11]} 30. Rxc5 {[%emt 0:00:30] aiming for Rc8+. KR-KR} Ra6 {[%emt 0:00:03]} 31. Rc2 {[%emt 0:00:00]} Kf7 {[%emt 0:01:42]} 32. g4 {[%emt 0:07:00]} h6 {[%emt 0:00:04]} 33. h4 {[%emt 0:06:17]} Kf6 {[%emt 0:01:29]} 34. g5+ {[%emt 0:02:35]} hxg5 {[%emt 0:00:08]} 35. hxg5+ {[%emt 0:00:03]} Ke6 {[%emt 0:01:32]} 36. Rc7 {[%emt 0:07:42]} Rxa2 {[%emt 0:00:06]} 37. Rg7 {[%emt 0:00:03]} Ra6 $1 {[%emt 0:00:08]} 38. Kg3 {[%emt 0:00:04]} Kd5 $1 {[%emt 0:00:24]} 39. Kg4 {[%emt 0:00:04]} Ke4 {[%emt 0:00:50]} 40. Re7+ {[%emt 0:03:57]} Kd5 {[%emt 0:00:02]} 41. Rg7 {[%emt 0:50:38]} Ke4 {[%emt 0:50:29]} 42. Re7+ {[%emt 0:00:00]} Kd5 {[%emt 0:00:00]} 43. Rf7 {[%emt 0:00:00]} Ke4 $2 {[%emt 0:00:00][%mdl 8192] Black is on the road to losing.} (43... Kc5 $11) 44. Rf6 $1 $18 {[%emt 0:00:00]} Rb6 {[%emt 0:00:00]} 45. f5 $1 {[%emt 0:00:00] Intending Re6+ and mate.} gxf5+ {[%emt 0:00:00]} 46. Rxf5 {[%emt 0:00:00]} Kd4 {[%emt 0:00:00]} 47. Kh5 {[%emt 0:00:00] g6 is the strong threat.} Kc4 {[%emt 0:00:00]} 48. g6 $1 {[%emt 0:00:00] White threatens g7 and mate.} Rb8 {[%emt 0:00:00]} 49. Ra5 $1 {[%emt 0:00:00]} Rb7 {[%emt 0:00:00]} 50. Kh6 $1 {[%emt 0:00:00]} Kb4 {[%emt 0:00:00]} 51. Ra6 $1 {[%emt 0:00:00]} Kb5 {[%emt 0:00:00]} 52. Ra1 {[%emt 0:00:00]} Rd7 {[%emt 0:01:35] [#]} 53. g7 $1 {[%emt 0:00:00]} Rxg7 {[%emt 0:00:37]} 54. Kxg7 {[%emt 0:00:00] KR-KP} a5 {[%emt 0:00:01][%cal Ba7a5,Ba5a4,Ba4a3,Ba3a2][%mdl 32]} 55. Kf6 {[%emt 0:00:00]} a4 {[%emt 0:00:07]} 56. Ke5 {[%emt 0:00:00]} Kb4 {[%emt 0:00:03]} 57. Kd4 {[%emt 0:00:00]} Kb3 {[%emt 0:00:04]} 58. Kd3 {[%emt 0:00:00]} a3 {[%emt 0:00:06] [#]} 59. Rb1+ $1 {[%emt 0:00:00]} Ka2 {[%emt 0:00:05]} 60. Rb6 {[%emt 0:00:24]} Ka1 {[%emt 0:00:07]} 61. Kc3 {[%emt 0:00:31] White mates.} a2 {[%emt 0:00:05]} 62. Re6 {[%emt 0:00:32][%cal Re6e1]} Kb1 {[%emt 0:00:05]} 63. Re1# {[%emt 0:00:00] Weighted Error Value: White=0.03 (flawless) /Black=0.28 (precise) .  Loses game:     	---       	Black=1      Mistake:       	White=1     	Black=1      Inaccurate:     	White=3     	Black=3      OK:         	White=15    	Black=14     Best:        	White=1     	Black=5      Strong:       	White=1     	Black=3} 1-0

[Event "German Bundesliga 2023-24"]
[Site "Germany"]
[Date "2024.03.16"]
[Round "12"]
[White "Donchenko, Alexander"]
[Black "Van Foreest, Lucas"]
[Result "1/2-1/2"]
[ECO "D02"]
[WhiteElo "2664"]
[BlackElo "2516"]
[Annotator "TA"]
[PlyCount "132"]
[EventDate "2023.10.20"]
[EventType "team-tourn"]
[EventCountry "GER"]
[SourceTitle "playchess.com"]
[Source "ChessBase"]
[SourceQuality "1"]
[TimeControl "40/6000+30:3000+30"]

{[%evp 11,132,-5,0,0,0,-4,8,3,0,0,0,0,45,45,42,44,72,68,52,64,76,63,79,74,136,118,139,125,155,155,318,318,347,351,327,356,330,130,170,185,184,164,185,175,205,198,207,191,174,180,143,122,149,148,145,142,143,123,198,190,206,185,195,119,152,127,136,145,150,148,123,103,120,94,84,98,97,103,126,94,86,88,88,72,79,0,62,0,93,76,122,122,133,133,133,94,84,79,79,79,81,81,123,72,73,54,73,45,45,45,45,15,15,-8,-8,-8,-8,-8,0,-8,-8,-8,-8]} 1. d4 {[%emt 0:01:00]} d5 {[%emt 0:01:00]} 2. Nf3 {[%emt 0:00:00]} Nf6 {[%emt 0:00:30]} 3. Bf4 {[%emt 0:00:00]} e6 {[%emt 0:03:30]} 4. e3 {[%emt 0:00:30]} Bd6 {[%emt 0:00:30]} 5. Ne5 {[%emt 0:00:30]} O-O {[%emt 0:02:30]} 6. Nd2 {[%emt 0:00:30][%cal Bb1d2,Bd2f3,Bf3e5][%mdl 32]} c5 {[%emt 0:03:30]} 7. c3 {[%emt 0:01:30]} Qc7 {[%emt 0:09:30]} 8. Bd3 {[%emt 0:02:30]} Nbd7 {[%emt 0:05:30]} 9. Ndf3 {[%emt 0:01:30]} b6 {[%emt 0:04:30]} 10. h4 {[%emt 0:09:30]} (10. Nxd7 {vereinfacht} Nxd7 11. Bxd6 Qxd6 12. Qc2) 10... Bb7 {[%emt 0:06:30]} 11. h5 {[%emt 0:04:30]} Ne4 {[%emt 0:18:30]} 12. Nxd7 {[%emt 0:22:30]} Qxd7 {[%emt 0:00:30]} 13. Ne5 {[%emt 0:01:30]} Qc7 {[%emt 0:01:30]} 14. Qg4 $1 {[%emt 0:05:30]} f5 {[%emt 0:09:30]} 15. Qh3 {[%emt 0:01:30]} Nf6 {[%emt 0:14:30]} 16. f3 {[%emt 0:13:30]} (16. h6 {mit weiteren Verwicklungen.} g6 17. Qg3 Rad8 18. f3) 16... a5 {[%emt 0:01:30]} 17. Qh2 {[%emt 0:07:30]} Rad8 {[%emt 0:05:30]} (17... h6 $142) 18. Bb5 {[%emt 0:04:30]} h6 {[%emt 0:01:51]} 19. Qg3 {[%emt 0:02:30]} Kh7 {[%emt 0:03:42]} 20. O-O-O {[%emt 0:07:30] Weiß steht aktiver.} Bxe5 $2 {[%emt 0:02:48]} (20... Bc8 $16 21. Rde1 Bxe5 22. Bxe5 Qe7) 21. Qg6+ $1 $18 {[%emt 0:04:08]} ({Weniger gut wäre} 21. Bxe5 Qf7 22. Bd6 Nxh5 $18) ({Schlechter ist} 21. dxe5 Ng8 $11) 21... Kh8 {[%emt 0:00:20]} 22. Bxe5 {[%emt 0:00:07]} ({Lieber nicht} 22. dxe5 Ng8 $15) 22... Qf7 {[%emt 0:00:44] Schwarz hat schwache schwarze Felder} 23. Rdg1 $1 {[%emt 0:02:14]} Kg8 {[%emt 0:02:45]} 24. Bd3 {[%emt 0:00:49] Das Läuferpaar ist gut.} (24. g4 $1 $18 {[%cal Rg4f5] und der Rest ist Schweigen.} fxg4 25. fxg4) 24... Bc6 {[%emt 0:01:09]} 25. g4 {[%emt 0:01:19]} Qxg6 {[%emt 0:01:55]} 26. hxg6 {[%emt 0:00:06]} fxg4 {[%emt 0:00:03]} 27. fxg4 {[%emt 0:00:37][%cal Bf3g4,Bg4g5][%mdl 32]} Ne4 {[%emt 0:00:19]} 28. Bxe4 {[%emt 0:04:46]} dxe4 {[%emt 0:00:03] [#]} 29. g5 $1 {[%emt 0:03:03]} h5 {[%emt 0:01:01]} 30. Rxh5 {[%emt 0:03:33] Beabsichtigt Rgh1 und Matt.} Be8 {[%emt 0:00:18]} 31. Bc7 {[%emt 0:06:01]} Rd5 {[%emt 0:01:58]} 32. Rgh1 {[%emt 0:00:18][%csl Gh1][%cal Rh5h8]} Bxg6 {[%emt 0:00:13]} 33. Rh8+ {[%emt 0:00:02]} Kf7 {[%emt 0:00:04]} 34. Rf1+ {[%emt 0:00:23]} Bf5 {[%emt 0:01:41]} (34... Rf5 $16 {ist wohl besser.} 35. Rxf8+ Kxf8 36. Rxf5+ exf5) 35. Rxf8+ {[%emt 0:00:10]} Kxf8 {[%emt 0:00:02]} 36. Bxb6 {[%emt 0:00:44]} cxd4 {[%emt 0:00:29]} 37. exd4 {[%emt 0:00:57][%mdl 4096] Endspiel. KRB-KRB} (37. Bxd4 $18 Kf7 38. a4) 37... Rb5 {[%emt 0:00:12]} 38. Bc7 {[%emt 0:00:44]} a4 {[%emt 0:00:39]} 39. c4 {[%emt 0:00:33]} Rb7 {[%emt 0:00:02]} 40. Be5 {[%emt 0:00:32]} Ke8 {[%emt 0:00:00]} 41. Kc2 {[%emt 0:13:24]} e3+ {[%emt 0:04:42][%cal Be4e3,Be3e2][%mdl 32]} 42. Kc3 {[%emt 0:00:30] Droht Re1 und aus.} e2 {[%emt 0:00:30]} 43. Re1 {[%emt 0:00:30]} Bg4 {[%emt 0:00:00]} 44. g6 {[%emt 0:01:30]} Ra7 {[%emt 0:01:00]} 45. b4 {[%emt 0:12:30]} axb3 {[%emt 0:00:00]} 46. axb3 {[%emt 0:00:00]} Bh5 {[%emt 0:00:00]} 47. Kb2 {[%emt 0:01:00] Wehrt Ra2+ ab} Rb7 {[%emt 0:01:30]} 48. Kc3 {[%emt 0:05:30] Und b4 würde nun gewinnen.} Ra7 $1 {[%emt 0:00:30][%cal Oa7a2]} 49. Kb2 {[%emt 0:03:01]} Rb7 $1 {[%emt 0:00:30]} 50. c5 {[%emt 0:00:08]} Kd7 {[%emt 0:04:30]} (50... Kd8 $142) 51. Bxg7 $16 {[%emt 0:00:44]} Bxg6 {[%emt 0:00:30]} 52. Rxe2 {[%emt 0:00:08][%cal Oc5c6] Schwarz muss nun c6+! beachten.} Bd3 {[%emt 0:00:30]} 53. c6+ {[%emt 0:05:53]} Kxc6 {[%emt 0:02:30]} 54. Rxe6+ {[%emt 0:00:37]} Kd7 {[%emt 0:00:30]} 55. Re3 {[%emt 0:00:25]} Bc4 {[%emt 0:00:30]} 56. Bf8 {[%emt 0:00:15] Zielt auf Re7+ ab.} Bd5 {[%emt 0:00:30] [#]} 57. Rc3 {[%emt 0:00:48]} (57. b4 $142 $1) 57... Rb6 {[%emt 0:00:30]} 58. Bc5 {[%emt 0:00:27]} Rf6 {[%emt 0:00:30]} 59. Re3 {[%emt 0:01:13]} Rf2+ {[%emt 0:01:30]} 60. Kc1 {[%emt 0:00:02]} Rf3 {[%emt 0:01:30]} 61. Re7+ {[%emt 0:00:03]} Kd8 {[%emt 0:00:30] Die Stellung ist ausgeglichen.} 62. b4 {[%emt 0:01:40]} Rc3+ $1 {[%emt 0:00:30]} 63. Kb2 {[%emt 0:00:01] [#]} Rxc5 $1 {[%emt 0:00:00]} 64. dxc5 {[%emt 0:00:17]} (64. Re8+ Kxe8) 64... Kxe7 {[%emt 0:00:00]} 65. c6 Bxc6 66. b5 Bxb5 {Schwarz hat sich erfolgreich gewehrt.   Gewichteter Fehlerwert: Weiß=0.15 (sehr präzise) /Schwarz=0.17 (sehr präzise) .  Verlustzug:     	---       	Schwarz=1     Gewinn verpasst:   	Weiß=1     	---        Fehler:       	Weiß=2     	Schwarz=3     Ungenau:       	Weiß=2     	Schwarz=4     OK:         	Weiß=23    	Schwarz=16    Bester:       	Weiß=3     	Schwarz=9     Stark:        	Weiß=4     	Schwarz=3     Brilliant:      	---       	Schwarz=1} 1/2-1/2

[Event "German Bundesliga 2023-24"]
[Site "Germany"]
[Date "2024.03.16"]
[Round "12"]
[White "Shevchenko, Kirill"]
[Black "Vachier-Lagrave, Maxime"]
[Result "1/2-1/2"]
[ECO "D85"]
[WhiteElo "2651"]
[BlackElo "2734"]
[Annotator "TA"]
[PlyCount "43"]
[EventDate "2023.10.20"]
[EventType "team-tourn"]
[EventCountry "GER"]
[SourceTitle "playchess.com"]
[Source "ChessBase"]
[SourceQuality "1"]
[TimeControl "40/6000+30:3000+30"]

{[%evp 15,43,13,8,5,22,5,14,20,12,0,14,0,0,0,0,0,0,0,0,-4,-7,1,-2,-3,0,0,0,0,0,-2]} 1. d4 {[%emt 0:01:00]} Nf6 {[%emt 0:01:00]} 2. c4 {[%emt 0:00:00]} g6 {[%emt 0:00:30]} 3. Nc3 {[%emt 0:00:00]} d5 {[%emt 0:00:00]} 4. cxd5 {[%emt 0:00:30]} Nxd5 {[%emt 0:00:00]} 5. e4 {[%emt 0:00:30]} Nxc3 {[%emt 0:00:00]} 6. bxc3 {[%emt 0:00:00]} Bg7 {[%emt 0:00:00]} 7. Qa4+ {[%emt 0:00:00]} Nd7 {[%emt 0:00:30][%cal Bb8d7,Bd7f6,Bf6g4][%mdl 32]} 8. Nf3 {[%emt 0:00:30]} O-O {[%emt 0:01:30] The position is equal.} 9. Qa3 {[%emt 0:01:30]} c5 {[%emt 0:01:30]} 10. Be2 {[%emt 0:03:30]} cxd4 {[%emt 0:01:30]} 11. cxd4 {[%emt 0:00:30]} Nf6 {[%emt 0:00:30]} 12. Qe3 {[%emt 0:00:30]} b5 {[%emt 0:03:30]} 13. O-O {[%emt 0:11:30][%cal Oh2h3]} (13. Bxb5 $2 {perishes.} Qa5+ 14. Nd2 Qxb5 $19) 13... Bb7 {[%emt 0:00:30]} 14. Bd3 {[%emt 0:02:30][%cal Oa1b1]} Ng4 {[%emt 0:02:30]} 15. Qe2 {[%emt 0:09:30][%cal Oh2h3]} Bxd4 {[%emt 0:01:30]} 16. Rb1 {[%emt 0:05:30]} a6 {[%emt 0:15:30]} 17. a4 {[%emt 0:00:30]} Ne5 {[%emt 0:05:30]} 18. Nxe5 {[%emt 0:02:30]} Bxe5 {[%emt 0:00:30]} 19. axb5 {[%emt 0:00:30]} axb5 {[%emt 0:02:30]} 20. Bh6 {[%emt 0:02:30]} Bg7 {[%emt 0:02:30]} 21. Bxg7 {[%emt 0:00:30]} Kxg7 {[%emt 0:00:30]} 22. Rxb5 {[%emt 0:00:30] A rather calm draw.   Weighted Error Value: White=0.01 (flawless) /Black=0.01 (flawless) .  OK:         	White=9     	Black=6      Best:        	---       	Black=2} 1/2-1/2

[Event "German Bundesliga 2023-24"]
[Site "Germany"]
[Date "2024.03.16"]
[Round "12"]
[White "Lagarde, Maxime"]
[Black "Brkic, Ante"]
[Result "1/2-1/2"]
[ECO "E11"]
[WhiteElo "2629"]
[BlackElo "2606"]
[Annotator "TA"]
[PlyCount "71"]
[EventDate "2023.10.20"]
[EventType "team-tourn"]
[EventCountry "GER"]
[SourceTitle "playchess.com"]
[Source "ChessBase"]
[SourceQuality "1"]
[TimeControl "40/6000+30:3000+30"]

{[%evp 11,71,14,26,0,10,0,16,16,18,12,23,0,0,0,34,8,0,0,0,-8,0,0,69,35,110,110,109,118,98,108,152,135,290,70,93,76,98,100,222,221,214,224,218,216,206,237,238,228,193,142,168,169,162,168,182,0,0,0,176,0,8,0]} 1. d4 {[%emt 0:01:00]} Nf6 {[%emt 0:01:00]} 2. c4 {[%emt 0:00:00]} e6 {[%emt 0:00:30]} 3. Nf3 {[%emt 0:00:00]} d5 {[%emt 0:00:30]} 4. g3 {[%emt 0:01:30]} Bb4+ {[%emt 0:00:30]} 5. Bd2 {[%emt 0:00:30]} a5 {[%emt 0:00:30]} 6. Bg2 {[%emt 0:00:00]} O-O {[%emt 0:00:30]} 7. Qc1 {[%emt 0:01:00]} Be7 {[%emt 0:01:30]} 8. O-O {[%emt 0:05:30]} c6 {[%emt 0:00:30]} 9. Bf4 {[%emt 0:05:30]} Nbd7 {[%emt 0:01:30]} 10. Rd1 {[%emt 0:04:30]} h6 {[%emt 0:03:30]} 11. h4 {[%emt 0:21:30]} a4 {[%emt 0:21:30]} 12. a3 {[%emt 0:02:30]} Qb6 {[%emt 0:18:30]} 13. Nc3 {[%emt 0:06:30]} Qa6 {[%emt 0:02:30]} 14. e4 {[%emt 0:09:30]} Nxe4 {[%emt 0:21:30]} 15. Nxe4 {[%emt 0:01:30]} dxe4 {[%emt 0:00:30]} 16. Ne5 {[%emt 0:00:00]} Nxe5 {[%emt 0:02:30]} (16... f5 $11) 17. dxe5 $14 {[%emt 0:01:00]} f5 {[%emt 0:00:30]} (17... Qb6 $14) 18. exf6 $16 {[%emt 0:01:30]} Bxf6 {[%emt 0:00:00]} 19. Bd6 $1 {[%emt 0:02:30]} Rd8 {[%emt 0:04:00]} 20. Bxe4 {[%emt 0:01:30] Droht stark Qf4.} Qb6 {[%emt 0:03:30]} 21. Qf4 {[%emt 0:01:30]} Qxb2 $2 {[%emt 0:06:16]} (21... e5 $16 22. Bxe5 Bxe5 23. Rxd8+ (23. Qxe5 Bh3 $16) 23... Qxd8 24. Qxe5 Kh8) 22. Rab1 $2 {[%emt 0:03:30]} (22. Bc5 $1 $18 {jetzt Rxd8+ und aus.} Rd7 23. Qg4) 22... Qe2 $1 $14 {[%emt 0:01:13]} 23. Re1 $36 {[%emt 0:19:39][%mdl 2048] Schwarz muss aufpassen.} Qh5 {[%emt 0:02:26]} 24. c5 {[%emt 0:02:58][%cal Bc4c5,Bc5d6][%mdl 32] Weiß steht deutlich aktiver.} Bc3 {[%emt 0:03:01] [#]} (24... e5 $16 25. Qe3 Ra7) 25. Bc2 $1 $18 {[%emt 0:03:15]} Bxe1 {[%emt 0:09:30]} 26. Rxe1 {[%emt 0:00:51][%cal Oe1e5] Re5! ist eine echte Drohung.} Rxd6 {[%emt 0:00:36]} 27. cxd6 {[%emt 0:06:02][%cal Of4e4]} Bd7 {[%emt 0:00:07] [#]} 28. Re5 {[%emt 0:00:40]} ({Und nicht} 28. Bxa4 Qa5 29. Rb1 (29. Re4 Qc3 $15) 29... Rf8 $11 (29... Qxa4 30. Qxa4 Rxa4 31. Rxb7 $11)) 28... Qf7 {[%emt 0:02:26] Und ...Qxf4 würde nun gewinnen.} 29. Qe4 {[%emt 0:00:38]} (29. Bxa4 $2 {ist das falsche Schlagen.} Qxf4 30. gxf4 Rxa4 $19) 29... g6 {[%emt 0:00:57]} 30. f4 {[%emt 0:01:16]} (30. Qxg6+ Qxg6 31. Bxg6 Kg7 $11) ({Günstiger ist} 30. Bxa4 $18 {Bb3 wäre nun fies.} Qf6 31. Bb3) 30... b5 {[%emt 0:01:15]} 31. Rxb5 {[%emt 0:01:39]} cxb5 {[%emt 0:00:51]} 32. Qxa8+ {[%emt 0:00:04]} Qf8 {[%emt 0:01:06]} 33. Qe4 {[%emt 0:02:09]} (33. Qxf8+ $18 Kxf8 34. Bxg6) 33... Qf5 $1 $11 {[%emt 0:00:21]} 34. Qa8+ $2 {[%emt 0:00:54]} (34. Kf2 $11 Kf7 35. Qxf5+ exf5 36. Ke3) 34... Qf8 $18 {[%emt 0:00:01]} 35. Qe4 {[%emt 0:02:27]} (35. Qxf8+ $18 Kxf8 36. Bxg6) 35... Qf5 $1 $11 {[%emt 0:00:01]} 36. Qa8+ {[%emt 0:03:19] Gewichteter Fehlerwert: Weiß=0.36/Schwarz=0.21 (präzise) .  Gewinn verpasst:   	Weiß=3     	---        Fehler:       	Weiß=2     	Schwarz=4     Ungenau:       	Weiß=2     	Schwarz=2     OK:         	Weiß=8     	Schwarz=6     Bester:       	Weiß=2     	Schwarz=3     Stark:        	Weiß=2     	Schwarz=3} 1/2-1/2

[Event "German Bundesliga 2023-24"]
[Site "Germany"]
[Date "2024.03.16"]
[Round "12"]
[White "Areshchenko, Alexander"]
[Black "Vitiugov, Nikita"]
[Result "1/2-1/2"]
[ECO "B38"]
[WhiteElo "2625"]
[BlackElo "2686"]
[Annotator "TA"]
[PlyCount "41"]
[EventDate "2023.10.20"]
[EventType "team-tourn"]
[EventCountry "GER"]
[SourceTitle "playchess.com"]
[Source "ChessBase"]
[SourceQuality "1"]
[TimeControl "40/6000+30:3000+30"]

{[%evp 11,41,36,47,39,46,21,33,21,26,20,37,0,23,0,39,0,0,0,0,-7,0,0,0,0,0,0,0,0,-8,-11,-11,-3]} 1. e4 {[%emt 0:01:00]} c5 {[%emt 0:01:00]} 2. Nf3 {[%emt 0:00:00]} g6 {[%emt 0:00:00]} 3. d4 {[%emt 0:00:00]} cxd4 {[%emt 0:00:00]} 4. Nxd4 {[%emt 0:00:30]} Nc6 {[%emt 0:01:30]} 5. c4 {[%emt 0:00:30]} Bg7 {[%emt 0:01:30]} 6. Be3 {[%emt 0:01:30]} Qb6 {[%emt 0:00:00][%csl LRb2,LRd4]} 7. Nb3 {[%emt 0:05:30]} Qd8 {[%emt 0:02:00]} 8. Nc3 {[%emt 0:02:30]} Bxc3+ {[%emt 0:00:30]} 9. bxc3 {[%emt 0:00:00] White is slightly better.} Nf6 {[%emt 0:00:00]} 10. f3 {[%emt 0:00:00]} d6 {[%emt 0:00:00]} 11. Be2 {[%emt 0:02:30]} b6 {[%emt 0:06:30]} 12. O-O {[%emt 0:00:30]} Bb7 {[%emt 0:13:30]} 13. a4 {[%emt 0:07:30]} O-O {[%emt 0:11:30] The position is equal.} 14. a5 {[%emt 0:06:30]} Qc7 {[%emt 0:07:30]} 15. Qb1 {[%emt 0:11:30]} Ba6 {[%emt 0:07:30]} 16. axb6 {[%emt 0:13:30]} axb6 {[%emt 0:01:30]} 17. Ra4 {[%emt 0:16:30]} Bb7 {[%emt 0:08:30]} 18. Rxa8 {[%emt 0:00:30]} Rxa8 {[%emt 0:00:00]} 19. Nd4 {[%emt 0:01:30]} Nd7 {[%emt 0:08:00]} 20. Nxc6 {[%emt 0:07:30]} Qxc6 {[%emt 0:03:30]} 21. Qb2 {[%emt 0:00:30] Weighted Error Value: White=0.09 (flawless) /Black=0.07 (flawless) .  Inaccurate:     	White=2     	Black=1      OK:         	White=4     	Black=7} 1/2-1/2